[Event "CCC-IM 2022"]
[Site "Ballerup"]
[Date "2022.05.29"]
[Round "8.1"]
[White "Jacobsen, Mikkel Manosri"]
[Black "Brynell, Stellan"]
[Result "1/2-1/2"]
[ECO "A46"]
[WhiteElo "2251"]
[BlackElo "2401"]
[Annotator "TA"]
[PlyCount "69"]
[EventDate "2022.05.25"]
[EventType "tourn"]
[EventCountry "DEN"]
[SourceTitle "playchess.com"]
[Source "ChessBase"]
[SourceQuality "1"]
[TimeControl "5400+30"]

{[%evp 20,69,16,10,27,12,25,9,27,29,53,44,40,42,49,33,40,40,31,14,8,9,6,11,8,7,9,0,0,0,16,0,14,25,14,20,19,7,12,0,0,0,0,0,0,0,0,0,0,0,0,0]} 1. d4 {[%emt 0:00:03]} Nf6 {[%emt 0:00:26]} 2. Nf3 {[%emt 0:00:06]} d5 {[%emt 0:00:14]} 3. c4 {[%emt 0:01:11]} e6 {[%emt 0:00:24]} 4. e3 {[%emt 0:00:15]} c5 {[%emt 0:01:02]} 5. Nc3 {[%emt 0:00:52]} a6 {[%emt 0:00:09]} 6. cxd5 {[%emt 0:01:57]} exd5 {[%emt 0:00:22]} 7. Be2 {[%emt 0:00:39]} Nc6 {[%emt 0:00:15]} 8. O-O {[%emt 0:00:07]} Bd6 {[%emt 0:02:19]} 9. dxc5 {[%emt 0:01:57]} Bxc5 {[%emt 0:00:13]} 10. b3 {[%emt 0:00:18]} O-O {[%emt 0:01:06]} 11. Bb2 {[%emt 0:00:13]} Bf5 {[%emt 0:01:24] D32: Tarrasch Defence: Sidelines and lines without g3.} 12. Rc1 {[%emt 0:05:13][%cal Oc3d5] With the idea Nxd5!} Qd6 {[%emt 0:02:39]} 13. Na4 {[%emt 0:07:10]} Ba7 {[%emt 0:01:52]} 14. Nd4 {[%emt 0:00:44]} Bd7 {[%emt 0:12:27]} 15. Nxc6 {[%emt 0:13:10]} Bxc6 {[%emt 0:00:11] [#]} 16. Bd4 $146 {[%emt 0:00:38]} ({Predecessor:} 16. Bf3 Rad8 17. Bd4 Bb8 18. g3 Ne4 19. Bg2 Qh6 20. Nc5 Rfe8 21. Qc2 Bd6 22. Rfd1 {½-½ (29) Clarke,P-Bhend,E Berlin West 1965}) 16... Bxa4 {[%emt 0:09:18]} 17. bxa4 {[%emt 0:00:15]} Bxd4 {[%emt 0:00:19]} 18. Qxd4 {[%emt 0:00:07]} Rac8 {[%emt 0:00:09]} 19. Qb2 {[%emt 0:06:43]} Qd7 {[%emt 0:04:18]} 20. g3 {[%emt 0:12:40]} h6 {[%emt 0:06:15]} 21. a5 $1 {[%emt 0:08:36]} Rxc1 {[%emt 0:07:04]} (21... Ne4 {looks sharper.} 22. Kg2 Rxc1 23. Rxc1 Rc8) 22. Rxc1 {[%emt 0:00:15]} Rc8 {[%emt 0:00:08]} 23. Rb1 {[%emt 0:04:01]} Rc7 {[%emt 0:01:39]} 24. Qe5 {[%emt 0:07:40]} Qc8 {[%emt 0:10:37]} 25. Bf3 {[%emt 0:04:15]} Rc1+ {[%emt 0:04:03]} 26. Rxc1 {[%emt 0:00:03]} Qxc1+ $11 {[%emt 0:00:07][%mdl 4096] Endgame KQB-KQN} 27. Kg2 {[%emt 0:00:07] [#] Black must now prevent Qb8+. The position is equal.} Qc6 {[%emt 0:01:38]} 28. h4 {[%emt 0:00:23]} g6 {[%emt 0:03:26]} 29. g4 {[%emt 0:01:33]} Ne4 {[%emt 0:02:27]} 30. Bxe4 {[%emt 0:02:35]} dxe4 {[%emt 0:00:05]} 31. g5 {[%emt 0:01:09]} h5 {[%emt 0:02:23]} 32. Kg3 {[%emt 0:02:31]} Qc1 {[%emt 0:08:04] [#] Strongly threatening ...Qg1+.} 33. Qe8+ {[%emt 0:09:04]} Kg7 {[%emt 0:00:09] aiming for ...Qg1+.} 34. Qe5+ {[%emt 0:00:05]} Kg8 {[%emt 0:00:22] And now ...Qg1+ would win.} 35. Qe8+ {[%emt 0:00:28] Weighted Error Value: White=0.04 (flawless) /Black=0.05 (flawless)} 1/2-1/2

[Event "CCC-IM 2022"]
[Site "Ballerup"]
[Date "2022.05.29"]
[Round "8.2"]
[White "Rostgaard, Tobias Valentin"]
[Black "Ahlander, Bjorn"]
[Result "1/2-1/2"]
[ECO "B51"]
[WhiteElo "2339"]
[BlackElo "2375"]
[Annotator "TA"]
[PlyCount "89"]
[EventDate "2022.05.25"]
[EventType "tourn"]
[EventCountry "DEN"]
[SourceTitle "playchess.com"]
[Source "ChessBase"]
[SourceQuality "1"]
[TimeControl "5400+30"]

{[%evp 9,89,3,15,18,19,24,34,30,32,36,34,41,45,41,39,37,47,46,53,43,50,47,53,44,40,42,60,41,45,43,64,61,62,48,48,49,49,49,49,49,78,69,70,76,63,63,78,76,100,76,70,50,55,59,80,82,80,0,0,5,10,23,46,0,0,0,0,0,0,0,0,0,4,0,0,0,0,0,0,0,0,0]} 1. e4 {[%emt 0:05:07]} c5 {[%emt 0:00:04]} 2. Nf3 {[%emt 0:00:05]} d6 {[%emt 0:00:07]} 3. Bb5+ {[%emt 0:00:19]} Nd7 {[%emt 0:00:02]} 4. O-O {[%emt 0:00:29]} a6 {[%emt 0:00:03]} 5. Bd3 {[%emt 0:00:16]} Ngf6 {[%emt 0:00:17]} 6. Re1 {[%emt 0:00:25] B51: Sicilian: Moscow Variation (3 Bb5+) without 3...Bd7.} e5 {[%emt 0:00:47]} 7. a4 {[%emt 0:00:23]} g6 {[%emt 0:00:47] [#]} 8. Bc4 $146 {[%emt 0:00:47] White is slightly better.} ({Predecessor:} 8. c3 Bg7 9. Bf1 O-O 10. d4 Qc7 11. Na3 b6 12. dxe5 dxe5 13. Nc4 Bb7 14. Nd6 {0-1 (40) Gezici,O (1697)-Daghan,D (2058) Kesan 2018}) 8... Bh6 {[%emt 0:04:24] Inhibits Ng5.} 9. d3 {[%emt 0:04:17]} Bxc1 {[%emt 0:00:24]} 10. Qxc1 {[%emt 0:00:05]} O-O {[%emt 0:00:29]} 11. Qh6 {[%emt 0:02:09] Black must now prevent Ng5.} Ng4 {[%emt 0:04:13]} 12. Qd2 {[%emt 0:00:06]} Kg7 {[%emt 0:02:39]} 13. c3 {[%emt 0:03:50]} Nb6 {[%emt 0:03:21]} 14. Bb3 $1 {[%emt 0:02:44]} Be6 {[%emt 0:00:55]} 15. Bxe6 {[%emt 0:00:12]} fxe6 {[%emt 0:00:03]} 16. Qe2 {[%emt 0:00:21]} Nd7 {[%emt 0:07:38]} 17. Nbd2 {[%emt 0:03:08]} Qe7 {[%emt 0:04:03]} 18. b4 {[%emt 0:03:38]} cxb4 {[%emt 0:05:45]} 19. cxb4 {[%emt 0:02:46]} a5 {[%emt 0:01:31]} 20. bxa5 {[%emt 0:00:08]} Rxa5 {[%emt 0:00:59]} 21. Nc4 {[%emt 0:02:47]} Ra6 {[%emt 0:00:01]} 22. h3 {[%emt 0:02:10]} Ngf6 {[%emt 0:06:57]} 23. Reb1 {[%emt 0:00:44]} Nc5 {[%emt 0:00:51]} 24. a5 {[%emt 0:00:12]} Nh5 {[%emt 0:06:57]} 25. g3 {[%emt 0:00:25] Against Nf4} Nf6 {[%emt 0:00:26]} 26. Rb2 {[%emt 0:00:47]} Nfd7 {[%emt 0:01:00]} 27. Rab1 {[%emt 0:01:13]} Kg8 {[%emt 0:02:55]} 28. Kg2 {[%emt 0:02:53]} Kg7 {[%emt 0:02:38]} 29. h4 {[%emt 0:01:18]} Kg8 {[%emt 0:09:02]} 30. d4 {[%emt 0:05:10]} exd4 {[%emt 0:00:20]} 31. Nxd4 {[%emt 0:00:06]} e5 {[%emt 0:06:56]} 32. Nb5 {[%emt 0:01:53]} Nf6 {[%emt 0:01:27]} 33. f3 {[%emt 0:03:34]} ({Better is} 33. Nbxd6 $16 {Rb5 is the strong threat.} Rxd6 34. Nxd6 Qxd6 35. Rb6) 33... d5 $11 {[%emt 0:07:19]} 34. exd5 {[%emt 0:05:05]} Nxd5 {[%emt 0:00:30]} 35. Qxe5 {[%emt 0:07:02]} Qf7 {[%emt 0:00:04]} 36. Nbd6 {[%emt 0:02:02] Active counter play!} (36. Rd2 $14 {was preferrable.} Qxf3+ 37. Kh2) 36... Qxf3+ {[%emt 0:02:32] The position is equal.} 37. Kh2 {[%emt 0:01:15] [#] aiming for Rd2. The board is on fire.} Nd3 {[%emt 0:03:02][%csl LRb2,LRe5]} 38. Qe6+ {[%emt 0:01:05]} Kh8 {[%emt 0:00:02]} 39. Ne5 {[%emt 0:06:12]} Nxe5 {[%emt 0:04:29]} 40. Qxe5+ {[%emt 0:00:05]} Nf6 {[%emt 0:01:05]} 41. Rd2 {[%emt 0:13:54] [#] Strongly threatening Rb4.} Kg8 {[%emt 0:03:27] ( -> ...Ng4+)} 42. Qe6+ {[%emt 0:00:33]} Kh8 {[%emt 0:00:02]} 43. Qe5 {[%emt 0:10:46]} Kg8 {[%emt 0:00:04] Threatens to win with ...Ng4+.} 44. Qe6+ {[%emt 0:03:54]} Kh8 {[%emt 0:00:02]} 45. Qe5 {Weighted Error Value: White=0.08 (flawless) /Black=0.06 (flawless)} 1/2-1/2

[Event "CCC-IM 2022"]
[Site "Ballerup"]
[Date "2022.05.29"]
[Round "8.3"]
[White "Kistrup, Nicolai"]
[Black "Sahl, Bjarke"]
[Result "1-0"]
[ECO "D78"]
[WhiteElo "2306"]
[BlackElo "2312"]
[Annotator "TA"]
[PlyCount "61"]
[EventDate "2022.05.25"]
[EventType "tourn"]
[EventCountry "DEN"]
[SourceTitle "playchess.com"]
[Source "ChessBase"]
[SourceQuality "1"]
[TimeControl "5400+30"]

{[%evp 13,61,6,6,10,18,0,25,22,44,18,43,23,88,73,107,78,83,69,104,94,108,78,79,76,74,85,103,103,112,107,153,106,195,180,187,183,426,420,383,263,296,289,590,600,1055,1052,1379,1194,1135,1083]} 1. d4 {[%emt 0:00:02]} d5 {[%emt 0:16:02]} 2. c4 {[%emt 0:00:11]} c6 {[%emt 0:00:11]} 3. Nf3 {[%emt 0:00:14]} Nf6 {[%emt 0:00:05]} 4. g3 {[%emt 0:00:25]} g6 {[%emt 0:02:07]} 5. Bg2 {[%emt 0:00:19]} Bg7 {[%emt 0:00:05]} 6. O-O {[%emt 0:00:42]} O-O {[%emt 0:00:26]} 7. Ne5 {[%emt 0:05:17]} Be6 {[%emt 0:04:57]} 8. cxd5 {[%emt 0:01:16] D78: Fianchetto Grünfeld: 6 0-0 c6.} Nxd5 {[%emt 0:02:25]} 9. Nc3 {[%emt 0:13:32]} Nb6 {[%emt 0:01:14]} 10. f4 {[%emt 0:11:15] White has an edge.} N8d7 {[%emt 0:04:28] [#]} 11. Nf3 $146 {[%emt 0:14:31]} ({Predecessor:} 11. Qc2 Nxe5 12. dxe5 Nc4 13. Nd1 {0-1 (36) Pushilin,A (2169)-Feofanov,V (2298) Berdsk 2008}) 11... Bc4 {[%emt 0:01:19]} 12. Re1 {[%emt 0:10:04]} Qc7 {[%emt 0:22:10]} (12... c5 $11) 13. e4 {[%emt 0:01:21][%cal Be2e4,Be4e5][%mdl 32]} Ba6 {[%emt 0:01:02]} 14. Qc2 {[%emt 0:04:15]} e6 {[%emt 0:07:49]} 15. Be3 {[%emt 0:03:53]} c5 {[%emt 0:02:10]} 16. e5 {[%emt 0:08:47]} Rfc8 {[%emt 0:10:01]} 17. Rad1 {[%emt 0:04:19]} cxd4 {[%emt 0:04:04]} 18. Nxd4 {[%emt 0:00:58]} Bf8 {[%emt 0:04:15]} 19. Qb1 {[%emt 0:06:21]} Bb4 {[%emt 0:01:55]} 20. Ndb5 {[%emt 0:03:42]} Qb8 {[%emt 0:02:06]} 21. Nd6 {[%emt 0:01:19]} Rc7 {[%emt 0:01:30]} ({Black should play} 21... Rd8 22. Bf2 Bxd6) 22. Bd4 $16 {[%emt 0:02:10][%cal Of4f5] 0x0.001de05f0110dp-1022s more active pieces.} Nc4 {[%emt 0:00:48] [#]} (22... Bc4 $16 {was necessary.} 23. Rc1 Bd5) 23. f5 $1 $18 {[%emt 0:01:02]} gxf5 {[%emt 0:02:38]} 24. Nxf5 {[%emt 0:00:59] aiming for Nh6+.} Bxc3 $2 {[%emt 0:01:29]} (24... exf5 25. Qxf5 Bc5 26. Bxc5 (26. e6 Bxd4+ 27. Rxd4 fxe6 $18) 26... Nxc5 27. Qg5+ Kh8 28. Qf6+ Kg8 29. Qg5+ Kh8 30. Qf6+ Kg8 31. Rd4 $18) (24... Qf8) 25. Bxc3 {[%emt 0:02:44]} ({Not} 25. Ne7+ Kh8 26. Bxc3 Ncb6 $16) 25... Qf8 {[%emt 0:00:22]} (25... exf5 $2 26. Qxf5 Qf8 27. Rxd7 Rxd7 28. e6 fxe6 29. Qxe6+ Qf7 30. Qg4+ Kf8 31. Rf1 $18) 26. Nd6 {[%emt 0:00:28][%cal Bf5d6,Bd6e4,Be4f6][%mdl 32]} Qg7 {[%emt 0:03:42]} 27. Qe4 {[%emt 0:01:41]} Nc5 $2 {[%emt 0:00:55]} (27... Nxd6 {is a better chance.} 28. exd6 Rxc3) 28. Qh4 {[%emt 0:00:31] [#] Threatens to win with Rd4. White is clearly winning.} Na4 {[%emt 0:02:41]} 29. Ne4 {[%emt 0:00:58] Strongly threatening Nf6+.} Rcc8 {[%emt 0:00:56]} 30. Nf6+ {[%emt 0:00:29]} Kh8 {[%emt 0:00:09]} 31. Rd4 {[%emt 0:00:43] White took control after the opening.  Weighted Error Value: White=0.11 (very precise) /Black=0.47} 1-0

[Event "CCC-IM 2022"]
[Site "Ballerup"]
[Date "2022.05.29"]
[Round "8.4"]
[White "Nielsen, Thomas Bach"]
[Black "Kenneskog, Theodor"]
[Result "0-1"]
[ECO "D94"]
[WhiteElo "2189"]
[BlackElo "2296"]
[Annotator "TA"]
[PlyCount "60"]
[EventDate "2022.05.25"]
[EventType "tourn"]
[EventCountry "DEN"]
[SourceTitle "playchess.com"]
[Source "ChessBase"]
[SourceQuality "1"]
[TimeControl "5400+30"]

{[%evp 20,60,-4,-6,0,0,0,0,0,0,0,0,7,0,0,3,2,8,16,8,15,0,1,3,6,-20,-24,-12,-12,-76,-85,-452,-452,-448,-443,-752,-702,-704,-700,-681,-660,-704,-703]} 1. d4 {[%emt 0:00:03]} Nf6 {[%emt 0:00:04]} 2. c4 {[%emt 0:00:05]} g6 {[%emt 0:00:04]} 3. Nc3 {[%emt 0:00:08]} d5 {[%emt 0:00:04]} 4. Nf3 {[%emt 0:01:46]} Bg7 {[%emt 0:00:04]} 5. e3 {[%emt 0:00:19]} O-O {[%emt 0:00:31]} 6. Bd3 {[%emt 0:01:11]} c5 {[%emt 0:00:45]} 7. O-O {[%emt 0:03:39]} cxd4 {[%emt 0:00:55]} 8. exd4 {[%emt 0:00:56]} Nc6 {[%emt 0:00:08][%cal Bb8c6,Bc6a5,Ba5c4][%mdl 32]} 9. h3 {[%emt 0:01:41]} dxc4 {[%emt 0:00:49]} 10. Bxc4 {[%emt 0:00:15]} Na5 {[%emt 0:00:05]} 11. Bd3 {[%emt 0:03:23]} Be6 {[%emt 0:01:56] D94: Grünfeld: 4 Nf3 Bg7 5 e3.} 12. Re1 {[%emt 0:12:36]} Rc8 {[%emt 0:02:05]} 13. Bg5 {[%emt 0:14:25]} Bc4 {[%emt 0:15:28] The position is equal.} 14. Bxc4 {[%emt 0:03:05]} Nxc4 {[%emt 0:00:25] [#]} 15. Qb3 $146 {[%emt 0:05:55]} ({Predecessor:} 15. Qe2 Re8 16. Rac1 Nb6 17. Bxf6 Bxf6 18. Ne4 Rxc1 19. Rxc1 Bg7 20. Qb5 Rf8 21. Qa5 {0-1 (140) Petrosyan,M (2427)-Kovalenko,I (2661) Dubai 2015}) 15... b6 {[%emt 0:08:57]} 16. Rac1 {[%emt 0:03:31]} h6 {[%emt 0:15:44]} 17. Bh4 {[%emt 0:03:01]} Qd7 {[%emt 0:07:37]} 18. Rcd1 {[%emt 0:07:51] Black should prevent Ne5.} Qb7 {[%emt 0:04:15]} 19. Ne5 {[%emt 0:01:23]} Na5 {[%emt 0:00:21]} 20. Qa3 {[%emt 0:00:58]} Rfe8 {[%emt 0:02:32]} 21. d5 {[%emt 0:02:48]} Nh5 {[%emt 0:07:35]} ({Don't play} 21... Nc4 22. Nxc4 Rxc4 23. Bxf6 Bxf6 24. d6 $14) 22. Nc6 {[%emt 0:04:24]} Nxc6 23. dxc6 {[%emt 0:00:03]} Qxc6 {[%emt 0:03:19][%cal Rg7c3]} 24. Rxe7 {[%emt 0:03:10]} (24. Nd5 $11 {keeps the balance.} g5 25. Nxe7+ Rxe7 26. Qxe7 gxh4 27. Qxh4) 24... Nf4 {[%emt 0:08:02][%csl Gf4][%cal Rc6g2] [#]} 25. Ne4 $2 {[%emt 0:03:26][%mdl 8192] This costs White the game.} (25. f3 $17) 25... g5 $19 {[%emt 0:10:28] Black is clearly winning.} 26. Bg3 {[%emt 0:01:49]} Bf8 {[%emt 0:00:35]} 27. Bxf4 {[%emt 0:04:31]} (27. Rxe8 $142 Rxe8 28. Qf3 Qxe4 29. Qxe4 Rxe4 30. Kf1) 27... Bxe7 {[%emt 0:00:13]} 28. Qf3 {[%emt 0:03:29]} gxf4 {[%emt 0:00:26]} 29. Qxf4 {[%emt 0:00:08]} Rcd8 {[%emt 0:04:47]} 30. Rc1 {[%emt 0:01:28]} Qg6 {Weighted Error Value: White=0.57/Black=0.03 (flawless)} 0-1

[Event "CCC-IM 2022"]
[Site "Ballerup"]
[Date "2022.05.29"]
[Round "8.5"]
[White "Seegert, Kristian"]
[Black "Casper Yukun Liu"]
[Result "1-0"]
[ECO "B99"]
[WhiteElo "2209"]
[BlackElo "2218"]
[Annotator "TA"]
[PlyCount "37"]
[EventDate "2022.05.25"]
[EventType "tourn"]
[EventCountry "DEN"]
[SourceTitle "playchess.com"]
[Source "ChessBase"]
[SourceQuality "1"]
[TimeControl "5400+30"]

{[%evp 24,37,16,25,17,-47,-55,-70,1208,1205,1198,1190,29984,29985,29982,5930]} 1. e4 {[%emt 0:00:06]} c5 {[%emt 0:00:17]} 2. Nf3 {[%emt 0:00:06]} d6 {[%emt 0:00:02]} 3. d4 {[%emt 0:00:11]} cxd4 {[%emt 0:00:07]} 4. Nxd4 {[%emt 0:00:08]} Nf6 {[%emt 0:00:05]} 5. Nc3 {[%emt 0:00:15]} a6 {[%emt 0:00:04]} 6. Bg5 {[%emt 0:01:18]} e6 {[%emt 0:00:33]} 7. f4 {[%emt 0:00:20]} Be7 {[%emt 0:00:01]} 8. Qf3 {[%emt 0:00:33]} Qc7 {[%emt 0:00:02]} 9. O-O-O {[%emt 0:00:33]} Nbd7 {[%emt 0:00:03]} 10. g4 {[%emt 0:00:38][%cal Bg2g4,Bg4g5][%mdl 32]} b5 {[%emt 0:00:01]} 11. Bxf6 {[%emt 0:00:48]} Nxf6 {[%emt 0:00:02]} 12. g5 {[%emt 0:00:10]} Nd7 {[%emt 0:00:04]} 13. f5 {[%emt 0:00:24]} O-O {[%emt 0:00:09] Threatens to win with ...b4. B99: Sicilian Najdorf: 6 Bg5 e6 7 f4 Be7 8 Qf3 Qc7 9 0-0-0 Nbd7.} 14. f6 {[%emt 0:29:30]} (14. h4 $11) 14... gxf6 $15 {[%emt 0:00:59] [#]} 15. Qh5 $146 {[%emt 0:03:11]} ({Predecessor:} 15. gxf6 Nxf6 16. e5 dxe5 17. Nc6 Bb7 18. Qg3+ Kh8 19. Nxe5 Bd8 20. Rxd8 Raxd8 21. Rg1 {½-½ (32) Rios,C (2449)-Delgado Ramirez,N (2622) Guwahati 2022}) 15... b4 $2 {[%emt 0:16:46][%mdl 8192] [#] A mistake that costs the game.} (15... fxg5 $2 16. Nf3 b4 17. Na4 $17) (15... Ne5 $15 16. gxf6 Bxf6 17. Rg1+ Ng6) 16. Nxe6 $1 $18 {[%emt 0:04:28][%mdl 512]} Qa7 {[%emt 0:20:11]} 17. Nd5 {[%emt 0:07:48][%cal Od1d3] White threatens Rd3! and mate. Pair of Knights!} Re8 {[%emt 0:08:27]} 18. gxf6 {[%emt 0:10:07]} Nf8 {[%emt 0:07:43]} 19. Nxe7+ {[%emt 0:05:59] Weighted Error Value: White=0.21 (precise) /Black=1.34} (19. fxe7 $142 Qxe7 20. Nxe7+ Rxe7 21. Nxf8 Kxf8 22. Qxh7 Rc7 23. Qh6+ Ke8 24. Qxd6) 1-0

[Event "CCC-IM 2022"]
[Site "Ballerup"]
[Date "2022.05.29"]
[Round "9.1"]
[White "Ahlander, Bjorn"]
[Black "Seegert, Kristian"]
[Result "1-0"]
[ECO "A80"]
[WhiteElo "2375"]
[BlackElo "2209"]
[Annotator "TA"]
[PlyCount "63"]
[EventDate "2022.05.25"]
[EventType "tourn"]
[EventCountry "DEN"]
[SourceTitle "playchess.com"]
[Source "ChessBase"]
[SourceQuality "1"]
[TimeControl "5400+30"]

{[%evp 9,63,0,8,0,13,0,0,3,8,6,9,0,0,0,6,0,0,8,13,0,27,24,87,69,105,106,129,74,143,102,131,110,202,162,299,177,331,292,366,296,470,448,696,714,716,714,697,677,783,778,771,739,1329,1277,1463,1060]} 1. d4 {[%emt 0:00:03]} f5 {[%emt 0:00:11]} 2. Nf3 {[%emt 0:00:05]} g6 {[%emt 0:00:55]} 3. g3 {[%emt 0:00:07]} Nf6 {[%emt 0:00:08]} 4. c3 {[%emt 0:00:05]} Bg7 {[%emt 0:00:26]} 5. Qb3 {[%emt 0:00:02]} e6 {[%emt 0:07:54]} 6. Bg2 {[%emt 0:00:03] A81: Dutch Defence: 2 g3.} O-O {[%emt 0:00:46] 6...0-0 is better than 6...Nc6.} 7. Ne5 {[%emt 0:00:05]} Nc6 {[%emt 0:05:14]} 8. Nxc6 {[%emt 0:00:35] The position is equal.} bxc6 {[%emt 0:00:31]} 9. Nd2 {[%emt 0:01:58][%cal Bb1d2,Bd2f3,Bf3e5][%mdl 32]} a5 {[%emt 0:05:55]} 10. O-O {[%emt 0:01:19]} Ba6 {[%emt 0:12:46]} 11. Re1 {[%emt 0:00:31] [#]} d5 $146 {[%emt 0:00:45]} ({Predecessor:} 11... Kh8 12. e4 f4 13. e5 fxg3 14. hxg3 Nd5 15. Ne4 Qe7 16. Qc2 d6 17. Bg5 Qd7 {1-0 (32) Poulton,J (2350)-Strange,M (2245) Sheffield 1996}) 12. Nf3 {[%emt 0:06:45]} Ne4 {[%emt 0:06:52]} 13. Bf4 {[%emt 0:01:02]} c5 {[%emt 0:16:36]} 14. Be5 {[%emt 0:00:24]} (14. Qa3 {seems wilder.} Re8 15. Ne5 cxd4 16. cxd4 g5 17. Be3) 14... Bxe5 {[%emt 0:08:28]} 15. Nxe5 {[%emt 0:00:33]} cxd4 {[%emt 0:01:01]} (15... Qd6 $11 {remains equal.}) 16. cxd4 $16 {[%emt 0:03:45]} Nd6 {[%emt 0:04:40]} 17. Rac1 {[%emt 0:08:43]} Qe7 {[%emt 0:02:40]} 18. Qc3 {[%emt 0:04:40] White is more active.} (18. Rc5 $142) 18... Nb5 {[%emt 0:06:08]} (18... Bb5 $142) 19. Qd2 {[%emt 0:00:04]} ({Don't play} 19. Qxa5 $6 Nxd4 20. Qd2 (20. Rxc7 Qd6 $11) 20... c5 $14) 19... a4 {[%emt 0:02:37]} 20. Rc6 {[%emt 0:03:48] [#] Black must now prevent Qa5.} Rfd8 {[%emt 0:02:44]} (20... Nd6 $16) 21. Rec1 {[%emt 0:08:24] And now R1c5 would win.} Rd6 {[%emt 0:00:47]} (21... Bb7 $142 22. R6c5 c6 23. Nxc6 Bxc6) 22. R6c5 {[%emt 0:00:03]} (22. Qb4 $142) 22... Qe8 $2 {[%emt 0:03:15]} (22... Rb6 {keeps fighting.} 23. e3 Qd8) 23. h4 $18 {[%emt 0:04:16]} Qe7 {[%emt 0:02:26]} 24. a3 {[%emt 0:03:49]} Qg7 {[%emt 0:01:07]} (24... Rb6 {might work better.} 25. e3 Rc8) 25. e3 {[%emt 0:01:10] White is clearly winning.} Rb8 {[%emt 0:00:37]} (25... Rdd8 $142 26. Qb4 Rdb8 27. Qxa4 Qf8) 26. Bf1 {[%emt 0:00:49]} Rb7 {[%emt 0:01:18]} 27. Qa5 {[%emt 0:04:35][%cal Rf1b5]} Rdb6 {[%emt 0:02:12]} 28. Qxa4 {[%emt 0:00:21]} Qe7 {[%emt 0:00:48]} 29. Nc6 {[%emt 0:02:21]} Qd6 {[%emt 0:00:40]} 30. Nb4 {[%emt 0:00:03]} Rb8 {[%emt 0:01:53]} 31. Rc6 {[%emt 0:00:43]} Qd7 {[%emt 0:00:47]} 32. Rxb6 {[%emt 0:01:15] Weighted Error Value: White=0.18 (very precise) /Black=0.49} 1-0